lending/lending_fUSD_20241211
["ID","MTS","AMOUNT","RATE_DAILY","PERIOD"]
[345059503,1733956268145,-993.13,0.00011099,2]
[345059504,1733956268155,-815.37,0.00011099,2]
[345059505,1733956268166,-815.37,0.00011099,2]
[345059506,1733956268176,-993.13,0.00011099,2]
[345059507,1733956268186,-815.37,0.00011099,2]
[345059508,1733956268195,-993.13,0.00011099,2]
[345059509,1733956268204,-815.37,0.00011099,2]
[345059510,1733956268213,-993.13,0.00011099,2]
[345059511,1733956268223,-815.37,0.00011099,2]
[345059512,1733956268231,-993.13,0.00011099,2]
[345059513,1733956268241,-815.37,0.00011099,2]
[345059514,1733956268250,-993.13,0.00011099,2]
[345059515,1733956268259,-815.37,0.00011099,2]
[345059516,1733956268268,-993.13,0.00011099,2]
[345059517,1733956268277,-815.37,0.00011099,2]
[345059518,1733956268286,-993.13,0.00011099,2]
[345059519,1733956268296,-815.37,0.00011099,2]
[345059520,1733956268305,-993.13,0.00011099,2]
[345059521,1733956268314,-993.24,0.00011099,2]
[345059522,1733956268323,-815.37,0.00011099,2]
[345059523,1733956268333,-815.37,0.00011099,2]
[345059524,1733956268342,-815.39,0.00011099,2]
[345059525,1733956268352,-602.63,0.00011099,2]
[345059526,1733956268361,-602.63,0.00011099,2]
[345059527,1733956268370,-627.84,0.00011099,2]
[345059528,1733956268380,-602.63,0.00011099,2]
[345059529,1733956268389,-627.84,0.00011099,2]
[345059530,1733956268399,-602.63,0.00011099,2]
[345059531,1733956268408,-627.84,0.00011099,2]
[345059532,1733956268417,-602.63,0.00011099,2]
[345059533,1733956268426,-627.84,0.00011099,2]
[345059534,1733956268435,-602.63,0.00011099,2]
[345059535,1733956268444,-627.84,0.00011099,2]
[345059536,1733956268453,-500.0,0.00011099,2]
[345059537,1733956268463,-602.63,0.00011099,2]
[345059538,1733956268472,-627.84,0.00011099,2]
[345059539,1733956268481,-500.0,0.00011099,2]
[345059540,1733956268491,-602.63,0.00011099,2]
[345059541,1733956268501,-500.0,0.00011099,2]
[345059542,1733956268510,-602.63,0.00011099,2]
[345059543,1733956268519,-627.84,0.00011099,2]
[345059544,1733956268528,-602.82,0.00011099,2]
[345059545,1733956268538,-500.0,0.00011099,2]
[345059546,1733956268548,-627.84,0.00011099,2]
[345059547,1733956268557,-627.84,0.00011099,2]
[345059548,1733956268567,-589.19,0.00011099,2]
[345059549,1733956268576,-627.84,0.00011099,2]
[345059550,1733956268585,-627.84,0.00011099,2]
[345059551,1733956268595,-589.19,0.00011099,2]
[345059552,1733956268604,-627.84,0.00011099,2]
[345059553,1733956268613,-589.19,0.00011099,2]
[345059554,1733956268623,-627.98,0.00011099,2]
[345059555,1733956268632,-589.19,0.00011099,2]
[345059556,1733956268642,-589.19,0.00011099,2]
[345059557,1733956268651,-589.19,0.00011099,2]
[345059558,1733956268661,-589.19,0.00011099,2]
[345059559,1733956268671,-589.19,0.00011099,2]
[345059560,1733956268680,-589.19,0.00011099,2]
[345059561,1733956268689,-589.19,0.00011099,2]
[345059562,1733956268703,-589.27,0.00011099,2]
[345059563,1733956268712,-3679.48,0.00011099,2]
[345059564,1733956268721,-3679.48,0.00011099,2]
[345059565,1733956268731,-3679.48,0.00011099,2]
[345059566,1733956268896,-3679.48,0.00011099,2]
[345059567,1733956268907,-3679.48,0.00011099,2]
[345059568,1733956268916,-3679.48,0.00011099,2]
[345059569,1733956268925,-3679.48,0.00011099,2]
[345059570,1733956268935,-3679.48,0.00011099,2]
[345059571,1733956268945,-3679.48,0.00011099,2]
[345059572,1733956268955,-1343.88,0.00011099,2]
[345059573,1733956268964,-3679.48,0.00011099,2]
[345059574,1733956268974,-1343.88,0.00011099,2]
[345059575,1733956268984,-3679.64,0.00011099,2]
[345059576,1733956268993,-1343.88,0.00011099,2]
[345059577,1733956269004,-1343.88,0.00011099,2]
[345059578,1733956269015,-1343.88,0.00011099,2]
[345059579,1733956269025,-1343.88,0.00011099,2]
[345059580,1733956269034,-1343.88,0.00011099,2]
[345059581,1733956269044,-1343.88,0.00011099,2]
[345059582,1733956269057,-1343.88,0.00011099,2]
[345059583,1733956269067,-1343.88256846,0.00011099,2]
[345059584,1733956269077,-1554.01,0.00011099,2]
[345059585,1733956269086,-1554.01,0.00011099,2]
[345059586,1733956269095,-1554.01,0.00011099,2]
[345059587,1733956269105,-1554.01,0.00011099,2]
[345059588,1733956269115,-1554.01,0.00011099,2]
[345059589,1733956269124,-1554.01,0.00011099,2]
[345059590,1733956269134,-1554.01,0.00011099,2]
[345059591,1733956269144,-1554.01,0.00011099,2]
[345059592,1733956269154,-1554.01,0.00011099,2]
[345059593,1733956269163,-1554.01,0.00011099,2]
[345059594,1733956269173,-1554.01,0.00011099,2]
[345059595,1733956269183,-1554.01,0.00011099,2]
[345059596,1733956269192,-1554.12,0.00011099,2]
[345059597,1733956269202,-500.0,0.00011099,2]
[345059598,1733956269211,-500.0,0.00011099,2]
[345059599,1733956269221,-600.38,0.00011099,2]
[345059600,1733956269231,-600.38,0.00011099,2]
[345059601,1733956269241,-600.38,0.00011099,2]
[345059602,1733956269251,-500.0,0.00011099,2]
[345059603,1733956269261,-600.38,0.00011099,2]
[345059604,1733956269271,-500.0,0.00011099,2]
[345059605,1733956269280,-600.38,0.00011099,2]
[345059606,1733956269290,-255.76,0.00011099,2]
[345059607,1733956269299,-600.38,0.00011099,2]
[345059608,1733956269309,-557.11,0.00011099,2]
[345059609,1733956269318,-600.38,0.00011099,2]
[345059610,1733956269328,-557.11,0.00011099,2]
[345059611,1733956269337,-600.38,0.00011099,2]
[345059612,1733956269347,-557.11,0.00011099,2]
[345059613,1733956269357,-600.38,0.00011099,2]
[345059614,1733956269366,-557.11,0.00011099,2]
[345059615,1733956269375,-600.38,0.00011099,2]
[345059616,1733956269385,-557.11,0.00011099,2]
[345059617,1733956269395,-600.38,0.00011099,2]
[345059618,1733956269405,-557.11,0.00011099,2]
[345059619,1733956269414,-600.46,0.00011099,2]
[345059620,1733956269423,-557.11,0.00011099,2]
[345059621,1733956269433,-557.11,0.00011099,2]
[345059622,1733956269443,-557.11,0.00011099,2]
[345059623,1733956269452,-557.34,0.00011099,2]
[345059624,1733956269462,-500.0,0.00011099,2]
[345059625,1733956269472,-500.0,0.00011099,2]
[345059626,1733956269482,-554.05,0.00011099,2]
[345059627,1733956269492,-554.05,0.00011099,2]
[345059628,1733956269501,-554.05,0.00011099,2]
[345059629,1733956269511,-554.05,0.00011099,2]
[345059630,1733956269520,-554.05,0.00011099,2]
[345059631,1733956269530,-554.05,0.00011099,2]
[345059632,1733956269539,-554.05,0.00011099,2]
[345059633,1733956269549,-554.05,0.00011099,2]
[345059634,1733956269559,-683.63,0.00011099,2]
[345059635,1733956269569,-554.05,0.00011099,2]
[345059636,1733956269578,-683.63,0.00011099,2]
[345059637,1733956269588,-500.0,0.00011099,2]
[345059638,1733956269597,-554.15049815,0.00011099,2]
[345059639,1733956269607,-683.63,0.00011099,2]
[345059640,1733956269616,-500.0,0.00011099,2]
[345059641,1733956269625,-500.0,0.00011099,2]
[345059642,1733956269635,-683.63,0.00011099,2]
[345059643,1733956269644,-500.0,0.00011099,2]
[345059644,1733956269653,-683.63,0.00011099,2]
[345059645,1733956269663,-500.0,0.00011099,2]
[345059646,1733956269672,-683.63,0.00011099,2]
[345059647,1733956269681,-500.0,0.00011099,2]
[345059648,1733956269691,-683.63,0.00011099,2]
[345059649,1733956269700,-500.0,0.00011099,2]
[345059650,1733956269709,-683.63,0.00011099,2]
[345059651,1733956269719,-500.0,0.00011099,2]
[345059652,1733956269728,-683.63,0.00011099,2]
[345059653,1733956269737,-500.0,0.00011099,2]
[345059654,1733956269747,-421.1,0.00011099,2]
[345059655,1733956269755,-683.75,0.00011099,2]
[345059656,1733956269765,-500.0,0.00011099,2]
[345059657,1733956269775,-500.0,0.00011099,2]
[345059658,1733956269784,-500.0,0.00011099,2]
[345059659,1733956269794,-500.0,0.00011099,2]
[345059660,1733956269805,-500.0,0.00011099,2]
[345059661,1733956269815,-500.0,0.00011099,2]
[345059662,1733956269824,-500.0,0.00011099,2]
[345059663,1733956269834,-500.0,0.00011099,2]
[345059664,1733956269844,-599.38,0.00011099,2]
[345059665,1733956269854,-599.38,0.00011099,2]
[345059666,1733956269864,-599.38,0.00011099,2]
[345059667,1733956269873,-599.38,0.00011099,2]
[345059668,1733956269882,-599.38,0.00011099,2]
[345059669,1733956269892,-599.38,0.00011099,2]
[345059670,1733956269902,-599.38,0.00011099,2]
[345059671,1733956269911,-599.38,0.00011099,2]
[345059672,1733956269921,-599.38,0.00011099,2]
[345059673,1733956269931,-599.38,0.00011099,2]
[345059674,1733956269942,-599.38,0.00011099,2]
[345059675,1733956269951,-599.56,0.00011099,2]
[345059676,1733956269961,-500.0,0.00011099,2]
[345059677,1733956269971,-500.0,0.00011099,2]
[345059678,1733956269980,-500.0,0.00011099,2]
[345059679,1733956269990,-500.0,0.00011099,2]
[345059680,1733956269999,-500.0,0.00011099,2]
[345059681,1733956270014,-500.0,0.00011099,2]
[345059682,1733956270023,-500.0,0.00011099,2]
[345059683,1733956270033,-500.0,0.00011099,2]
[345059684,1733956270042,-583.05,0.00011099,2]
[345059685,1733956270051,-3457.56,0.00011099,2]
[345059686,1733956270062,-3457.56,0.00011099,2]
[345059687,1733956270071,-3457.56,0.00011099,2]
[345059688,1733956270080,-3457.56,0.00011099,2]
[345059689,1733956270090,-3457.56,0.00011099,2]
[345059690,1733956270099,-500.0,0.00011099,2]
[345059691,1733956270108,-3457.56,0.00011099,2]
[345059692,1733956270118,-3457.56,0.00011099,2]
[345059693,1733956270127,-500.0,0.00011099,2]
[345059694,1733956270136,-599.17,0.00011099,2]
[345059695,1733956270146,-3457.56,0.00011099,2]
[345059696,1733956270156,-3457.56,0.00011099,2]
[345059697,1733956270166,-3457.66545858,0.00011099,2]
[345059698,1733956270175,-578.48,0.00011099,2]
[345059699,1733956270185,-578.48,0.00011099,2]
[345059700,1733956270195,-578.48,0.00011099,2]
[345059701,1733956270204,-578.48,0.00011099,2]
[345059702,1733956270214,-578.48,0.00011099,2]
[345059703,1733956270223,-578.48,0.00011099,2]
[345059704,1733956270233,-578.48,0.00011099,2]
[345059705,1733956270242,-578.48,0.00011099,2]
[345059706,1733956270252,-578.48,0.00011099,2]
[345059707,1733956270262,-578.48,0.00011099,2]
[345059708,1733956270271,-578.48,0.00011099,2]
[345059709,1733956270281,-578.51122426,0.00011099,2]
[345059710,1733956270290,-500.0,0.00011099,2]
[345059711,1733956270300,-500.0,0.00011099,2]
[345059712,1733956270309,-500.0,0.00011099,2]
[345059713,1733956270319,-500.0,0.00011099,2]
[345059714,1733956270329,-500.0,0.00011099,2]
[345059715,1733956270339,-1753.75,0.00011099,2]
[345059716,1733956270348,-1753.75,0.00011099,2]
[345059717,1733956270357,-1753.75,0.00011099,2]
[345059718,1733956270367,-1753.75,0.00011099,2]
[345059719,1733956270376,-1753.75,0.00011099,2]
[345059720,1733956270386,-1753.75,0.00011099,2]
[345059721,1733956270395,-1753.75,0.00011099,2]
[345059722,1733956270405,-1753.75,0.00011099,2]
[345059723,1733956270414,-1753.75,0.00011099,2]
[345059724,1733956270424,-1753.87450744,0.00011099,2]
[345059725,1733956270434,-555.59,0.00011099,2]
[345059726,1733956270443,-555.59,0.00011099,2]
[345059727,1733956270454,-555.59,0.00011099,2]
[345059728,1733956270463,-555.59,0.00011099,2]
[345059729,1733956270472,-555.59,0.00011099,2]
[345059730,1733956270481,-555.59,0.00011099,2]
[345059731,1733956270490,-500.0,0.00011099,2]
[345059732,1733956270499,-555.59,0.00011099,2]
[345059733,1733956270509,-500.0,0.00011099,2]
[345059734,1733956270518,-555.59,0.00011099,2]
[345059735,1733956270528,-500.0,0.00011099,2]
[345059736,1733956270537,-555.59,0.00011099,2]
[345059737,1733956270547,-500.0,0.00011099,2]
[345059738,1733956270562,-500.0,0.00011099,2]
[345059739,1733956270572,-555.65,0.00011099,2]
[345059740,1733956270582,-480.9,0.00011099,2]
[345059741,1733956270591,-500.0,0.00011099,2]
[345059742,1733956270601,-500.0,0.00011099,2]
[345059743,1733956270611,-500.0,0.00011099,2]
[345059744,1733956270621,-500.0,0.00011099,2]
[345059745,1733956270631,-500.0,0.00011099,2]
[345059746,1733956270640,-500.0,0.00011099,2]
[345059747,1733956270649,-500.0,0.00011099,2]
[345059748,1733956270659,-596.6,0.00011099,2]
[345059749,1733956270668,-562.99,0.00011099,2]
[345059750,1733956270678,-562.99,0.00011099,2]
[345059751,1733956270687,-562.99,0.00011099,2]
[345059752,1733956270696,-500.0,0.00011099,2]
[345059753,1733956270706,-562.99,0.00011099,2]
[345059754,1733956270716,-562.99,0.00011099,2]
[345059755,1733956270725,-348.75,0.00011099,2]
[345059756,1733956270734,-562.99,0.00011099,2]
[345059757,1733956270743,-562.99,0.00011099,2]
[345059758,1733956270753,-562.99,0.00011099,2]
[345059759,1733956270762,-562.99,0.00011099,2]
[345059760,1733956270771,-563.02660918,0.00011099,2]
[345059761,1733956270781,-584.95416075,0.00011099,2]
[345059762,1733956270790,-1477.99,0.00011099,2]
[345059763,1733956270800,-1477.99,0.00011099,2]
[345059764,1733956270809,-1477.99,0.00011099,2]
[345059765,1733956270818,-1477.99,0.00011099,2]
[345059766,1733956270828,-1477.99,0.00011099,2]
[345059767,1733956270838,-1477.99,0.00011099,2]
[345059768,1733956270847,-863.3,0.00011099,2]
[345059769,1733956270856,-1477.99,0.00011099,2]
[345059770,1733956270865,-863.3,0.00011099,2]
[345059771,1733956270874,-1477.99,0.00011099,2]
[345059772,1733956270883,-1477.99,0.00011099,2]
[345059773,1733956270892,-863.3,0.00011099,2]
[345059774,1733956270902,-1478.06,0.00011099,2]
[345059775,1733956270911,-863.3,0.00011099,2]
[345059776,1733956270920,-863.3,0.00011099,2]
[345059777,1733956270930,-863.3,0.00011099,2]
[345059778,1733956270939,-863.3,0.00011099,2]
[345059779,1733956270948,-863.3,0.00011099,2]
[345059780,1733956270958,-863.3,0.00011099,2]
[345059781,1733956270967,-863.3,0.00011099,2]
[345059782,1733956271102,-1696.2,0.00011099,2]
[345059783,1733956271112,-1696.2,0.00011099,2]
[345059784,1733956271122,-1696.2,0.00011099,2]
[345059785,1733956271131,-1696.2,0.00011099,2]
[345059786,1733956271140,-1696.2,0.00011099,2]
[345059787,1733956271149,-1696.2,0.00011099,2]
[345059788,1733956271159,-1696.2,0.00011099,2]
[345059789,1733956271169,-1696.2,0.00011099,2]
[345059790,1733956271178,-1696.2,0.00011099,2]
[345059791,1733956271187,-1696.26,0.00011099,2]
[345059792,1733956271198,-212144.94099198,0.000111,2]
[345059793,1733956271207,-6722.14513258,0.000111,2]
[345059794,1733956271216,-2991017.37492982,0.000111,2]
[345059795,1733956271536,-380912.1857071,0.000111,2]
[345059796,1733956271558,-500.0,0.00010958,2]
[345059797,1733956271567,-75850.0,0.000111,2]
[345059798,1733956271583,-418.52,0.000111,2]
[345059799,1733956271595,-16191.49588652,0.000111,2]
[345059800,1733956271606,-525.61314599,0.000111,2]
[345059801,1733956271640,-500.0,0.00010958,2]
[345059802,1733956271649,-500.0,0.00010958,2]
[345059803,1733956271659,-500.0,0.00011098,2]
[345059804,1733956271668,-466.1089577,0.000111,2]
[345059805,1733956271680,-573.84979377,0.000111,2]
[345059806,1733956272144,-918.26401678,0.00010858,2]
[345059807,1733956272155,-500.0,0.00010958,2]
[345059808,1733956272164,-625.35,0.00010958,2]
[345059809,1733956272173,-500.0,0.00010958,2]
[345059810,1733956272183,-500.0,0.00010958,2]
[345059811,1733956272192,-625.35,0.00010958,2]
[345059812,1733956272201,-500.0,0.00010958,2]
[345059813,1733956272210,-625.35,0.00010958,2]
[345059814,1733956272219,-500.0,0.00010958,2]
[345059815,1733956272229,-500.0,0.00010958,2]
[345059816,1733956272238,-625.35,0.00010958,2]
[345059817,1733956272248,-500.0,0.00010958,2]
[345059818,1733956272258,-500.0,0.00010958,2]
[345059819,1733956272267,-625.35,0.00010958,2]
[345059820,1733956272277,-625.35,0.00010958,2]
[345059821,1733956272287,-625.35,0.00010958,2]
[345059822,1733956272297,-625.35,0.00010958,2]
[345059823,1733956272307,-500.0,0.00010999,2]
[345059824,1733956272317,-500.0,0.00010999,2]
[345059825,1733956272326,-625.35,0.00010999,2]
[345059826,1733956272336,-500.0,0.00011097,2]
[345059827,1733956272346,-287.07,0.00011097,2]
[345059828,1733956272356,-625.35,0.00011097,2]
[345059829,1733956272365,-500.0,0.00011098,2]
[345059830,1733956272375,-500.0,0.00011098,2]
[345059831,1733956272385,-212.12,0.00011098,2]
[345059832,1733956272395,-625.35,0.00011098,2]
[345059833,1733956272404,-625.35,0.00011098,2]
[345059834,1733956272414,-625.35,0.00011098,2]
[345059835,1733956272424,-625.35,0.00011098,2]
[345059836,1733956272433,-500.0,0.00011099,2]
[345059837,1733956272443,-500.0,0.00011099,2]
[345059838,1733956272452,-348.09,0.00011099,2]
[345059839,1733956272461,-625.35,0.00011099,2]
[345059840,1733956272471,-625.35,0.00011099,2]
[345059841,1733956272480,-625.35,0.00011099,2]
[345059842,1733956272489,-625.35,0.00011099,2]
[345059843,1733956272498,-16628.59598672,0.000111,2]
[345059844,1733956272510,-479.71,0.000111,2]
[345059845,1733956272521,-366.595002,0.000111,2]
[345059846,1733956272540,-625.35,0.00011099,2]
[345059847,1733956272551,-2216.59509074,0.000111,2]
[345059848,1733956272566,-3338.45242994,0.000111,2]
[345059849,1733956272578,-1109.76612253,0.000111,2]
[345059850,1733956272717,-1096.7956999,0.000111,2]
[345059851,1733956272729,-599.27299999,0.000111,2]
[345059852,1733956272886,-625.35,0.00011099,2]
[345059853,1733956272895,-491.71833318,0.00011099,2]
[345059854,1733956272907,-133.63166682,0.00011099,2]
[345059855,1733956272916,-351.86833247,0.00011099,2]
[345059856,1733956272928,-273.48166753,0.00011099,2]
[345059857,1733956272938,-625.35,0.00011099,2]
[345059858,1733956272947,-625.47126379,0.00011099,2]
[345059859,1733956272957,-12954.1300471,0.000111,2]
[345059860,1733956272970,-362.042706,0.000111,2]
[345059861,1733956272988,-981.3045,0.00010858,2]
[345059862,1733956272998,-9123.623492,0.000111,2]
[345059863,1733956273140,-40815.69887178,0.000111,2]
[345059864,1733956273151,-9958.59977508,0.000111,2]
[345059865,1733956273163,-5302.46120304,0.000111,2]
[345059866,1733956273174,-33716.2818501,0.000111,2]
[345059867,1733956273201,-21909.90346203,0.000111,2]
[345059868,1733956273213,-3880299.99997663,0.000111,2]
[345059869,1733956273337,-3837.66000001,0.000111,2]
[345059870,1733956273350,-403132.27703093,0.000111,2]
[345059871,1733956273361,-2200.0,0.000111,2]
[345059875,1733956513806,545.14,8.219e-05,2]
[345059897,1733957431781,-250.0,9.747e-05,2]
[345059898,1733957431791,-1000.0,9.759e-05,2]
[345059899,1733957431800,-500.61,9.774e-05,2]
[345059900,1733957431809,-250.0,9.776e-05,2]
[345059901,1733957431819,-987.45,9.836e-05,2]
[345059902,1733957431827,-150.0,9.856e-05,2]
[345059903,1733957431836,-10.83194215,9.908e-05,2]
[345059904,1733957431847,-189.16805785,9.908e-05,2]
[345059905,1733957431857,-9707.58,9.967e-05,2]
[345059906,1733957431866,-250.0,9.983e-05,2]
[345059907,1733957431876,-150.0,0.0001003,2]
[345059908,1733957431886,-290.75,0.00010092,2]
[345059909,1733957431895,-150.0,0.0001011,2]
[345059910,1733957431906,-155.63,0.00010137,2]
[345059911,1733957431915,-404.98,0.00010137,2]
[345059912,1733957431925,-699.39,0.00010145,2]
[345059913,1733957431935,-150.0,0.00010163,2]
[345059914,1733957431945,-975.06,0.00010278,2]
[345059915,1733957431955,-975.06,0.00010278,2]
[345059916,1733957431965,-975.06,0.00010278,2]
[345059917,1733957431975,-975.06,0.00010278,2]
[345059918,1733957431986,-975.06,0.00010278,2]
[345059919,1733957431995,-975.06,0.00010278,2]
[345059920,1733957432005,-167.09,0.00010299,2]
[345059921,1733957432016,-283.51,0.00010341,2]
[345059922,1733957432025,-150.0,0.00010393,2]
[345059923,1733957432035,-290.75,0.00010465,2]
[345059924,1733957432045,-975.06,0.00010478,2]
[345059925,1733957432054,-364.42,0.00010478,2]
[345059926,1733957432065,-150.0,0.00010478,2]
[345059927,1733957432074,-150.0,0.00010478,2]
[345059928,1733957432084,-545.14,0.00010482,2]
[345059929,1733957432093,-443.334,0.0001055,2]
[345059930,1733957432103,-500.0,0.0001063,2]
[345059931,1733957432113,-1700.0,0.0001063,2]
[345059932,1733957432122,-150.0,0.0001063,2]
[345059933,1733957432132,-975.06,0.00010673,2]
[345059934,1733957432142,-1395.42,0.00010673,2]
[345059935,1733957432151,-1944.85,0.00010673,2]
[345059937,1733957432161,-150.0,0.00010696,2]
[345059939,1733957432170,-534.68,0.00010741,2]
[345059940,1733957432180,-150.0,0.00010741,2]
[345059941,1733957432189,-300.0,0.00010741,2]
[345059943,1733957432198,-150.0,0.00010741,2]
[345059944,1733957432208,-840.19,0.00010741,2]
[345059945,1733957432218,-435.45,0.00010741,2]
[345059946,1733957432227,-435.45,0.00010741,2]
[345059947,1733957432237,-435.45,0.00010741,2]
[345059948,1733957432247,-434.31,0.00010741,2]
[345059949,1733957432256,-648.97,0.00010741,2]
[345059950,1733957432267,-200.0,0.00010745,2]
[345059951,1733957432277,-1500.0,0.00010791,2]
[345059952,1733957432286,-466.21,0.000108,2]
[345059954,1733957432296,-150.0,0.00010821,2]
[345059955,1733957432305,-290.75,0.00010838,2]
[345059957,1733957432314,-285.1916475,0.000109,2]
[345059958,1733957432324,-150.0,0.00010919,2]
[345059959,1733957432336,-224.8562947,0.00010949,2]
[345059960,1733957432349,-543.9137053,0.00010949,2]
[345059961,1733957432358,-297.05828007,0.00010949,2]
[345059962,1733957432369,-471.71171993,0.00010949,2]
[345059963,1733957432382,-18.08398995,0.00010949,2]
[345059964,1733957432399,-750.68601005,0.00010949,2]
[345059965,1733957432409,-207.09776822,0.00010949,2]
[345059966,1733957432431,-561.67223178,0.00010949,2]
[345059967,1733957432440,-127.07776322,0.00010949,2]
[345059968,1733957432453,-563.23994461,0.00010949,2]
[345059969,1733957432464,-78.45229217,0.00010949,2]
[345059970,1733957432474,-837.0,0.00010957,2]
[345059971,1733957432483,-371.9885681,0.00010958,2]
[345059972,1733957432493,-500.0,0.00010958,2]
[345059973,1733957432502,-345.53616392,0.00010958,2]
[345059974,1733957432515,-154.46383608,0.00010958,2]
[345059975,1733957432525,-391.74627396,0.00010958,2]
[345059976,1733957432537,-108.25372604,0.00010958,2]
[345059977,1733957432546,-442.74335097,0.00010958,2]
[345059978,1733957432558,-57.25664903,0.00010958,2]
[345059979,1733957432568,-500.0,0.00010958,2]
[345059980,1733957432578,-500.0,0.00010958,2]
[345059981,1733957432587,-500.0,0.00010958,2]
[345059982,1733957432597,-500.0,0.00010958,2]
[345059983,1733957432607,-500.0,0.00010958,2]
[345059984,1733957432617,-500.0,0.00010958,2]
[345059985,1733957432628,-500.0,0.00010958,2]
[345059986,1733957432637,-500.0,0.00010958,2]
[345059987,1733957432647,-500.0,0.00010958,2]
[345059988,1733957432658,-500.0,0.00010958,2]
[345059989,1733957432668,-500.0,0.00010958,2]
[345059990,1733957432678,-500.0,0.00010958,2]
[345059991,1733957432688,-500.0,0.00010958,2]
[345059992,1733957432698,-500.0,0.00010958,2]
[345059993,1733957432707,-500.0,0.00010958,2]
[345059994,1733957432718,-500.0,0.00010958,2]
[345059995,1733957432728,-500.0,0.00010958,2]
[345059996,1733957432739,-500.0,0.00010958,2]
[345059997,1733957432748,-500.0,0.00010958,2]
[345059998,1733957432760,-51.42235097,0.00010958,2]
[345059999,1733957432784,-448.57764903,0.00010958,2]
[345060000,1733957432794,-101.00138407,0.00010958,2]
[345060001,1733957432806,-398.99861593,0.00010958,2]
[345060002,1733957432815,-404.83696507,0.00010958,2]
[345060003,1733957432827,-95.16303493,0.00010958,2]
[345060004,1733957432837,-500.0,0.00010958,2]
[345060005,1733957432846,-500.0,0.00010958,2]
[345060006,1733957432855,-500.0,0.00010958,2]
[345060007,1733957432865,-500.0,0.00010958,2]
[345060008,1733957432875,-500.0,0.00010958,2]
[345060009,1733957432884,-500.0,0.00010958,2]
[345060010,1733957432894,-589.09,0.00010958,2]
[345060011,1733957432904,-1000.0,0.00010979,2]
[345060012,1733957432913,-500.61,0.00010996,2]
[345060013,1733957432924,-500.0,0.00010999,2]
[345060014,1733957432933,-500.0,0.00010999,2]
[345060015,1733957432943,-6326.09967475,0.00010999,3]
[345060016,1733957432953,-975.06,0.00011,2]
[345060017,1733957432962,-5049.51752952,0.00011,2]
[345060018,1733957432972,-150.0,0.00011008,2]
[345060019,1733957432981,-500.0,0.00011045,2]
[345060020,1733957432991,-500.0,0.00011045,2]
[345060021,1733957433000,-500.0,0.00011045,2]
[345060022,1733957433012,-500.0,0.00011045,2]
[345060023,1733957433023,-330.8697,0.00011045,2]
[345060024,1733957433033,-1000.0,0.00011045,2]
[345060025,1733957433044,-588.0645,0.00011045,2]
[345060026,1733957433054,-150.0,0.00011055,2]
[345060027,1733957433064,-23134.0,0.00011068,2]
[345060028,1733957433073,-932.0,0.00011086,2]
[345060029,1733957433083,-426.12,0.00011086,2]
[345060030,1733957433094,-3629.0,0.00011086,2]
[345060031,1733957433103,-3812.93,0.00011086,2]